fUSD/lending_fUSD_20241029
["ID","MTS","AMOUNT","RATE_DAILY","PERIOD"]
[340960860,1730160408907,-500.0,0.00016247,2]
[340960861,1730160408936,-500.0,0.00016247,2]
[340960862,1730160408965,-150.0,0.00016557,2]
[340960863,1730160409210,-300.0,0.00019725,2]
[340960869,1730160447820,150.0,0.00016564,2]
[340960871,1730160510009,253.99539278,0.00017602,2]
[340960872,1730160543151,300.0,0.00019725,2]
[340960880,1730160601481,300.0,0.00019725,2]
[340960881,1730160620094,250.0,0.00017,2]
[340960887,1730160632175,-383.762619,0.00027344,2]
[340960888,1730160632184,-6234.9883038,0.00027482,2]
[340960889,1730160632196,-5659.2751962,0.00027482,2]
[340960890,1730160632205,-3.67606692,0.00027482,2]
[340960891,1730160632278,-490.72843308,0.00027482,2]
[340960892,1730160632287,-219.87156692,0.00027482,2]
[340960893,1730160632438,-220.62843308,0.00027482,2]
[340960894,1730160632448,-300.0,0.00033352,2]
[340960895,1730160632457,-177.68156692,0.00033353,2]
[340960898,1730160638179,-633.31843308,0.00033353,2]
[340960899,1730160638189,-10.11556692,0.00033353,2]
[340960900,1730160638201,-2117.3781606,0.00033353,2]
[340960901,1730160638285,-77.50627248,0.00033353,2]
[340960902,1730160638295,-466.8754341,0.000346,2]
[340960903,1730160638655,-533.1245659,0.000346,2]
[340960904,1730160638667,-2205.0,0.00036353,2]
[340960905,1730160638677,-150.99,0.00036353,2]
[340960906,1730160638686,-2205.0,0.00039353,2]
[340960907,1730160638696,-12444.81,0.00039353,30]
[340960908,1730160638706,-621.08,0.00040056,2]
[340960909,1730160638715,-190.09,0.00040153,2]
[340960910,1730160638725,-710.6,0.00040842,120]
[340960911,1730160638735,-155.54,0.00041096,2]
[340960912,1730160638745,-250.0,0.00041182,2]
[340960913,1730160638756,-13954.56355413,0.00041364,7]
[340960914,1730160638769,-7687.99644587,0.00041364,7]
[340960915,1730160638779,-6019.98,0.00041665,2]
[340960916,1730160638789,-190.09,0.00041738,120]
[340960917,1730160638799,-219.6,0.00041738,2]
[340960918,1730160638809,-150.0,0.00041742,7]
[340960919,1730160638819,-2275.78,0.00041761,2]
[340960920,1730160638828,-217.71,0.00041769,2]
[340960921,1730160638838,-250.0,0.00041774,120]
[340960922,1730160638847,-250.0,0.00041868,2]
[340960923,1730160638857,-5056.16062528,0.00041883,2]
[340960924,1730160639067,-637.40955584,0.00041883,2]
[340960927,1730160640179,-6262.08647688,0.00041883,2]
[340960928,1730160640191,-6262.42122009,0.00041883,2]
[340960929,1730160640204,-2236.00212191,0.00041883,2]
[340960930,1730160640213,-2242.44412891,0.00041896,2]
[340960931,1730160640225,-8077.38587109,0.00041896,2]
[340960932,1730160640235,-226.89,0.00041897,2]
[340960933,1730160640245,-4122.72610968,0.00041967,7]
[340960934,1730160640257,-6425.37879786,0.00041967,7]
[340960935,1730160640268,-15631.47509246,0.00041967,7]
[340960936,1730160640278,-163.85,0.00041999,120]
[340960937,1730160640299,-173.28,0.00042199,2]
[340960938,1730160640310,-155.54,0.00042241,2]
[340960939,1730160640320,-155.27,0.00042267,2]
[340960940,1730160640330,-155.27,0.00042284,2]
[340960941,1730160640340,-155.27,0.00042302,2]
[340960942,1730160640350,-155.27,0.0004232,2]
[340960943,1730160640360,-621.08,0.0004232,2]
[340960944,1730160640370,-155.27,0.00042337,2]
[340960945,1730160640380,-185.7878776,0.00042343,20]
[340960946,1730160640390,-2205.0,0.00042353,2]
[340960947,1730160640400,-155.27,0.00042355,2]
[340960948,1730160640410,-155.27,0.00042372,2]
[340960949,1730160640419,-155.27,0.0004239,2]
[340960950,1730160640429,-155.27,0.00042408,2]
[340960951,1730160640439,-155.27,0.00042425,2]
[340960952,1730160640450,-155.27,0.00042443,2]
[340960953,1730160640460,-1488.231,0.00042443,64]
[340960954,1730160640470,-500.0,0.00042443,120]
[340960955,1730160640479,-500.0,0.00042443,120]
[340960956,1730160640489,-500.0,0.00042443,120]
[340960957,1730160640499,-500.0,0.00042443,120]
[340960958,1730160640508,-500.0,0.00042443,120]
[340960959,1730160640518,-500.0,0.00042443,120]
[340960960,1730160640529,-500.0,0.00042443,120]
[340960961,1730160640540,-500.0,0.00042443,120]
[340960962,1730160640551,-500.0,0.00042443,120]
[340960963,1730160640562,-500.0,0.00042443,120]
[340960964,1730160640571,-500.0,0.00042443,120]
[340960965,1730160640581,-500.0,0.00042443,120]
[340960966,1730160640591,-500.0,0.00042443,120]
[340960967,1730160640601,-500.0,0.00042443,120]
[340960968,1730160640611,-500.0,0.00042443,120]
[340960969,1730160640621,-500.0,0.00042443,120]
[340960970,1730160640630,-500.0,0.00042443,120]
[340960971,1730160640640,-500.0,0.00042443,120]
[340960972,1730160640649,-500.0,0.00042443,120]
[340960973,1730160640659,-500.0,0.00042443,120]
[340960974,1730160640670,-500.0,0.00042443,120]
[340960975,1730160640679,-500.0,0.00042443,120]
[340960976,1730160640689,-500.0,0.00042443,120]
[340960977,1730160640699,-500.0,0.00042443,120]
[340960978,1730160640709,-500.0,0.00042443,120]
[340960979,1730160640719,-500.0,0.00042443,120]
[340960980,1730160640732,-500.0,0.00042443,120]
[340960981,1730160640742,-500.0,0.00042443,120]
[340960982,1730160640751,-500.0,0.00042443,120]
[340960983,1730160640761,-500.0,0.00042443,120]
[340960984,1730160640770,-500.0,0.00042443,120]
[340960985,1730160640780,-500.0,0.00042443,120]
[340960986,1730160640790,-500.0,0.00042443,120]
[340960987,1730160640801,-500.0,0.00042443,120]
[340960988,1730160640811,-500.0,0.00042443,120]
[340960989,1730160640820,-500.0,0.00042443,120]
[340960990,1730160640830,-500.0,0.00042443,120]
[340960991,1730160640840,-500.0,0.00042443,120]
[340960992,1730160640850,-500.0,0.00042443,120]
[340960993,1730160640860,-500.0,0.00042443,120]
[340960994,1730160640869,-500.0,0.00042443,120]
[340960995,1730160640879,-500.0,0.00042443,120]
[340960996,1730160640891,-500.0,0.00042443,120]
[340960997,1730160640901,-500.0,0.00042443,120]
[340960998,1730160640911,-500.0,0.00042443,120]
[340960999,1730160640922,-500.0,0.00042443,120]
[340961000,1730160640931,-500.0,0.00042443,120]
[340961001,1730160640941,-500.0,0.00042443,120]
[340961002,1730160640951,-500.0,0.00042443,120]
[340961003,1730160640963,-500.0,0.00042443,120]
[340961004,1730160640974,-500.0,0.00042443,120]
[340961005,1730160640984,-500.0,0.00042443,120]
[340961006,1730160640994,-500.0,0.00042443,120]
[340961007,1730160641004,-500.0,0.00042443,120]
[340961008,1730160641016,-500.0,0.00042443,120]
[340961009,1730160641026,-500.0,0.00042443,120]
[340961010,1730160641037,-500.0,0.00042443,120]
[340961011,1730160641047,-500.0,0.00042443,120]
[340961012,1730160641057,-500.0,0.00042443,120]
[340961013,1730160641067,-500.0,0.00042443,120]
[340961014,1730160641077,-500.0,0.00042443,120]
[340961015,1730160641087,-500.0,0.00042443,120]
[340961016,1730160641096,-500.0,0.00042443,120]
[340961017,1730160641105,-500.0,0.00042443,120]
[340961018,1730160641116,-500.0,0.00042443,120]
[340961019,1730160641127,-500.0,0.00042443,120]
[340961020,1730160641138,-500.0,0.00042443,120]
[340961021,1730160641148,-500.0,0.00042443,120]
[340961022,1730160641160,-500.0,0.00042443,120]
[340961023,1730160641172,-500.0,0.00042443,120]
[340961024,1730160641182,-500.0,0.00042443,120]
[340961025,1730160641191,-500.0,0.00042443,120]
[340961026,1730160641201,-500.0,0.00042443,120]
[340961027,1730160641210,-500.0,0.00042443,120]
[340961028,1730160641220,-500.0,0.00042443,120]
[340961029,1730160641230,-500.0,0.00042443,120]
[340961030,1730160641239,-500.0,0.00042443,120]
[340961031,1730160641250,-500.0,0.00042443,120]
[340961032,1730160641260,-500.0,0.00042443,120]
[340961033,1730160641270,-500.0,0.00042443,120]
[340961034,1730160641280,-500.0,0.00042443,120]
[340961035,1730160641296,-500.0,0.00042443,120]
[340961036,1730160641307,-500.0,0.00042443,120]
[340961037,1730160641318,-500.0,0.00042443,120]
[340961038,1730160641330,-500.0,0.00042443,120]
[340961039,1730160641339,-500.0,0.00042443,120]
[340961040,1730160641349,-500.0,0.00042443,120]
[340961041,1730160641359,-500.0,0.00042443,120]
[340961042,1730160641368,-500.0,0.00042443,120]
[340961043,1730160641378,-500.0,0.00042443,120]
[340961044,1730160641387,-500.0,0.00042443,120]
[340961045,1730160641397,-500.0,0.00042443,120]
[340961046,1730160641406,-500.0,0.00042443,120]
[340961047,1730160641416,-500.0,0.00042443,120]
[340961048,1730160641426,-500.0,0.00042443,120]
[340961049,1730160641435,-500.0,0.00042443,120]
[340961050,1730160641445,-500.0,0.00042443,120]
[340961051,1730160641454,-500.0,0.00042443,120]
[340961052,1730160641464,-500.0,0.00042443,120]
[340961053,1730160641473,-500.0,0.00042443,120]
[340961054,1730160641483,-500.0,0.00042443,120]
[340961055,1730160641492,-500.0,0.00042443,120]
[340961056,1730160641501,-500.0,0.00042443,120]
[340961057,1730160641510,-500.0,0.00042443,120]
[340961058,1730160641520,-500.0,0.00042443,120]
[340961059,1730160641530,-500.0,0.00042443,120]
[340961060,1730160641539,-500.0,0.00042443,120]
[340961061,1730160641549,-500.0,0.00042443,120]
[340961062,1730160641561,-500.0,0.00042443,120]
[340961063,1730160641571,-500.0,0.00042443,120]
[340961064,1730160641581,-500.0,0.00042443,120]
[340961065,1730160641591,-500.0,0.00042443,120]
[340961066,1730160641600,-500.0,0.00042443,120]
[340961067,1730160641610,-500.0,0.00042443,120]
[340961068,1730160641620,-155.27,0.00042461,2]
[340961069,1730160641629,-155.27,0.00042478,2]
[340961070,1730160641639,-1000.0,0.00042668,2]
[340961071,1730160641649,-1931.5,0.00043018,7]
[340961072,1730160641659,-1000.0,0.000431,7]
[340961073,1730160641669,-500.0,0.00043259,7]
[340961074,1730160641679,-500.0,0.00043259,7]
[340961075,1730160641688,-500.0,0.00043259,7]
[340961076,1730160641699,-643.25,0.00043259,7]
[340961077,1730160641709,-159.77,0.00043318,2]
[340961078,1730160641721,-190.09,0.00043323,120]
[340961079,1730160641732,-155.54,0.00043387,2]
[340961080,1730160641742,-1172.96493129,0.00043451,120]
[340961081,1730160641753,-330.0,0.00043591,8]
[340961082,1730160641764,-1075.809,0.00043735,2]
[340961083,1730160641774,-16387.04415783,0.00043744,7]
[340961084,1730160641792,-350.03455,0.00043744,7]
[340961085,1730160641804,-1441.40088987,0.00043744,7]
[340961086,1730160641815,-500.0,0.00043744,7]
[340961093,1730160643324,-52580.62630972,0.00043744,7]
[340961094,1730160643336,-13312.84409258,0.00043744,7]
[340961095,1730160643345,-615.76909166,0.00043822,15]
[340961096,1730160643356,-615.76909157,0.00043858,15]
[340961097,1730160643366,-615.76909157,0.00043895,15]
[340961098,1730160643375,-474.91942262,0.000439,2]
[340961099,1730160643390,-345.64057738,0.000439,2]
[340961100,1730160643399,-615.76909157,0.00043931,15]
[340961101,1730160643409,-407.8282,0.00043944,2]
[340961102,1730160643418,-693.11,0.00043959,2]
[340961103,1730160643429,-615.76909157,0.00043968,15]
[340961104,1730160643438,-615.76909157,0.00044004,15]
[340961105,1730160643448,-615.76909157,0.00044041,15]
[340961106,1730160643457,-17479.6163,0.00044048,2]
[340961107,1730160643467,-1199.2962,0.00044048,2]
[340961108,1730160643476,-675.2984,0.00044048,2]
[340961109,1730160643487,-424.02420919,0.00044059,2]
[340961110,1730160643497,-664.4252,0.00044059,2]
[340961111,1730160643507,-1167.1844,0.00044059,2]
[340961112,1730160643518,-1654.3905,0.00044059,2]
[340961113,1730160643529,-615.76909157,0.00044077,15]
[340961114,1730160643539,-500.0,0.00044083,16]
[340961115,1730160643550,-500.0,0.00044083,16]
[340961116,1730160643560,-500.0,0.00044083,16]
[340961117,1730160643570,-500.0,0.00044083,16]
[340961118,1730160643579,-500.0,0.00044083,16]
[340961119,1730160643589,-500.0,0.00044083,16]
[340961120,1730160643598,-500.0,0.00044083,16]
[340961121,1730160643608,-500.0,0.00044083,16]
[340961122,1730160643618,-500.0,0.00044083,16]
[340961123,1730160643629,-500.0,0.00044083,16]
[340961124,1730160643639,-150.0,0.000441,34]
[340961125,1730160643649,-166.21,0.00044102,2]
[340961127,1730160643658,-615.76909157,0.00044114,15]
[340961128,1730160643668,-154.0068732,0.00044123,9]
[340961130,1730160643677,-14202.3672,0.00044148,2]
[340961132,1730160643687,-2538.3461,0.00044148,2]
[340961134,1730160643697,-615.76909157,0.0004415,15]
[340961136,1730160643706,-160.91203681,0.0004415,19]
[340961138,1730160643716,-2977.86235716,0.0004415,2]
[340961140,1730160643726,-204.14875848,0.0004415,16]
[340961142,1730160643736,-162.06372135,0.00044158,120]
[340961144,1730160643747,-500.0,0.00044158,14]
[340961146,1730160643757,-151.43653552,0.00044158,14]
[340961148,1730160643766,-500.0,0.00044158,2]
[340961150,1730160643776,-500.0,0.00044158,14]
[340961152,1730160643786,-1837.0419,0.00044159,2]
[340961154,1730160643796,-3544.6383,0.00044159,2]
[340961156,1730160643806,-486.3573,0.00044159,2]
[340961158,1730160643815,-5518.74678981,0.00044159,2]
[340961169,1730160646215,-529.70610577,0.00044158,14]
[340961170,1730160646224,-1573.60921019,0.00044159,2]
[340961171,1730160646234,-196.83952937,0.00044159,19]
[340961172,1730160646245,-4573.45468121,0.00044159,2]
[340961173,1730160646255,-109.49047346,0.00044159,2]
[340961174,1730160646267,-1836.153,0.00044159,2]
[340961175,1730160646428,-12849.9884962,0.00044159,2]
[340961176,1730160722158,300.0,0.00019725,2]
[340961177,1730160747697,161.05,0.00015342,2]
[340961178,1730160901596,300.0,0.00019725,2]
[340961179,1730161034847,168.04,0.00019178,2]
[340961182,1730161203781,300.0,0.00019725,2]
[340961184,1730161262237,300.0,0.00019725,2]
[340961186,1730161322146,300.0,0.00019725,2]
[340961187,1730161507814,195466.91460722,0.00016,2]
[340961188,1730161529733,5109.08731592,0.000101,2]
[340961189,1730161536248,19750.0,9e-05,2]
[340961190,1730161591550,406.16793136,0.00015,2]
[340961191,1730161604353,1413.781,0.00044256,30]
[340961192,1730161612954,439.90665074,0.00044256,30]
[340961193,1730161638842,150.0,0.00044256,38]
[340961197,1730161677090,2855.27335965,0.00012579,2]
[340961198,1730161682234,129949.49170896,0.000145,3]
[340961199,1730161684288,4354257.68733493,0.00015,2]
[340961201,1730161699309,1648.18375139,0.0001439,2]
[340961204,1730161713795,479.76527907,0.000129,2]
[340961208,1730161716762,9307.1837177,0.00010998,2]
[340961209,1730161726158,182.19876196,0.00013,2]
[340961210,1730161727152,254.74660013,0.000107,2]
[340961240,1730161832445,-154.81,0.00015342,2]
[340961241,1730161832458,-832.0,0.0001537,2]
[340961242,1730161832468,-730.37359272,0.000159,2]
[340961243,1730161832478,-141.40307815,0.00015973,2]
[340961244,1730161832492,-52.39096124,0.00015973,2]
[340961245,1730161832502,-773.39153876,0.0001599,3]
[340961246,1730161832515,-13159.99999905,0.0001599,3]
[340961247,1730161832677,-2679.66425441,0.0001599,3]
[340961368,1730161838376,-1174.93180538,0.0001599,3]
[340961369,1730161838435,-1673.6521984,0.0001599,3]
[340961370,1730161838448,-295.87687955,0.0001599,2]
[340961371,1730161838458,-295.87687955,0.0001599,2]
[340961372,1730161838468,-295.87687955,0.0001599,2]
[340961373,1730161838478,-450.23473226,0.00015999,2]
[340961374,1730161838487,-2359.55834976,0.00016,2]
[340961375,1730161838502,-1051.27520469,0.00016,2]
[340961376,1730161838514,-559.12249875,0.00016,2]
[340961377,1730161838556,-27712.11199948,0.00016,2]
[340961546,1730161840525,-1313.60513521,0.00016,2]
[340961548,1730161840537,-385.703,0.00016,2]
[340961845,1730161843552,-1034.63973771,0.00016,2]
[340961847,1730161843650,-1399.80000078,0.00016,2]
[340961856,1730161844356,-1349.22109306,0.00016,2]
[340961858,1730161844369,-3088.99310277,0.00016,2]
[340961871,1730161844488,-16519.426,0.00016,2]
[340961874,1730161844502,-2479.99999985,0.00016,2]
[340962045,1730162139863,3663.41059014,0.00044189,120]
[340962046,1730162162747,150.0,0.00044189,120]
[340962049,1730162290999,150.0,0.00015,2]
[340962050,1730162292208,150.0,0.00015,2]
[340962051,1730162295505,150.0,0.00015,2]
[340962052,1730162297097,150.0,0.00015,2]
[340962053,1730162299454,150.0,0.00015,2]
[340962056,1730162514132,-158.01,0.00015342,2]
[340962057,1730162514158,-300.0,0.00015899,2]
[340962058,1730162514187,-300.0,0.00015899,2]
[340962059,1730162514213,-4241.99,0.000159,2]
[340962061,1730162545081,-150.0,0.00015635,2]
[340962062,1730162545115,-300.0,0.00015899,2]
[340962063,1730162545140,-2550.0,0.000159,2]
[340962064,1730162704938,2000.0,0.00044199,30]
[340962088,1730163031421,-1350.6183,0.000159,2]
[340962089,1730163031435,-913.5613,0.000159,2]
[340962090,1730163031445,-9692.2948,0.000159,2]
[340962091,1730163031455,-1000.0,0.000159,2]
[340962092,1730163031466,-672.005,0.000159,2]
[340962093,1730163031476,-1582.3829,0.000159,2]
[340962094,1730163031485,-1421.7029896,0.0001591,2]
[340962095,1730163031495,-160.91203681,0.0001591,2]
[340962096,1730163031504,-15056.67371503,0.0001591,2]
[340962097,1730163031513,-1174.93180542,0.0001599,3]
[340962098,1730163031525,-157.59331097,0.0001599,2]
[340962099,1730163031536,-157.59331097,0.0001599,2]
[340962100,1730163031544,-157.59331097,0.0001599,2]
[340962101,1730163031554,-10362.70749484,0.00015999,2]
[340962102,1730163031563,-450.0,0.00015999,2]
[340962103,1730163031573,-18792.58910823,0.00016,2]
[340962104,1730163031585,-14094.35560649,0.00016,2]
[340962105,1730163031596,-15490.7,0.00016,2]
[340962106,1730163031607,-910.67391534,0.00016,2]
[340962107,1730163031620,-636.79253411,0.00016,2]
[340962108,1730163031631,-3261.61744405,0.00016,2]
[340962109,1730163031644,-1287.62195801,0.00016,2]
[340962110,1730163031842,-1174.91676973,0.00016,2]
[340962111,1730163031854,-1398.19,0.00016,2]
[340962112,1730163031866,-13885.44122706,0.00016,2]
[340962113,1730163031877,-2519.95441177,0.00016,2]
[340962114,1730163031889,-662546.89809814,0.00016,2]
[340962115,1730163031900,-377.73844015,0.00016,2]
[340962116,1730163031912,-1003.71067767,0.00016,2]
[340962118,1730163036200,1010.19,0.00044199,30]
[340962122,1730163037529,-1548.56094,0.00016,2]
[340962123,1730163037584,-852.99136144,0.00016,2]
[340962124,1730163037695,-2388.47000001,0.00016,2]
[340962125,1730163037706,-349.465,0.00016,2]
[340962126,1730163037717,-2268.98623405,0.00016,2]
[340962142,1730163039475,-300.0,0.00016,2]
[340962147,1730163039530,-1931.75748067,0.00016,2]
[340962148,1730163039547,-1745.2,0.00016,2]
[340962149,1730163039559,-598.80872381,0.00016,2]
[340962150,1730163039698,-277.62782763,0.00016,2]
[340962151,1730163039863,-7362.91986883,0.00016,2]
[340962152,1730163039875,-702.80378492,0.00016,2]
[340962153,1730163039886,-835.16043615,0.00016,2]
[340962154,1730163039966,-8403.38800001,0.00016,2]
[340962159,1730163042773,-2020.80195655,0.00016,2]
[340962160,1730163042784,-1035.47222015,0.00016,2]
[340962161,1730163042803,-500.57827625,0.00016,2]
[340962171,1730163045573,-2634.7739615,0.00016,2]
[340962172,1730163045682,-1533.65593338,0.00016,2]
[340962221,1730164231661,-155.7,0.00015342,2]
[340962222,1730164231671,-161.05,0.00015342,2]
[340962223,1730164231681,-410.17604426,0.00015342,2]
[340962224,1730164231696,-157.4100005,0.00015533,2]
[340962225,1730164231705,-28.2626924,0.00015634,2]
[340962226,1730164231723,-16950.6488087,0.00015634,2]
[340962227,1730164231736,-300.0,0.00015634,2]
[340962228,1730164231746,-1000.0,0.000159,2]
[340962229,1730164231756,-23365.23347945,0.000159,2]
[340962230,1730164231788,-1594.44501813,0.000159,2]
[340962231,1730164231800,-1017.2002,0.000159,2]
[340962232,1730164231811,-474.46635641,0.000159,2]
[340962233,1730164231911,-619.70867741,0.000159,2]
[340962234,1730164231923,-731.15094616,0.000159,2]
[340962235,1730164231934,-2903.71306986,0.000159,2]
[340962236,1730164231946,-3421.55845167,0.000159,2]
[340962237,1730164231957,-2228.53585342,0.000159,2]
[340962247,1730164237811,-250.3942405,0.000159,2]
[340962248,1730164237827,-21389.17700776,0.000159,2]
[340962413,1730164239741,-768.79,0.000159,2]
[340962415,1730164239752,-573.09991265,0.000159,2]
[340962418,1730164239765,-3921.10659425,0.000159,2]
[340962441,1730164239976,-841.90965,0.000159,2]
[340962443,1730164239988,-682.49991569,0.000159,2]
[340962449,1730164240037,-2016.5,0.000159,2]
[340962672,1730164242931,-1014.02598254,0.000159,2]
[340962679,1730164245694,-2721.6468441,0.000159,2]
[340962680,1730164245705,-692.3283,0.000159,2]
[340962681,1730164245716,-618.06289744,0.000159,2]
[340962682,1730164245726,-158323.8787217,0.0001599,2]
[340962683,1730164245739,-725.63,0.0001599,2]
[340962684,1730164245933,-725.63,0.0001599,2]
[340962685,1730164245944,-725.63,0.0001599,2]
[340962686,1730164245954,-725.63,0.0001599,2]
[340962687,1730164245966,-725.63,0.0001599,2]
[340962688,1730164245977,-67180.6522541,0.00016,2]
[340962689,1730164245990,-6503.19173614,0.00016,2]
[340962690,1730164246004,-1520.78656709,0.00016,2]
[340962691,1730164246016,-1624894.67598896,0.00016,2]
[340962692,1730164246033,-502.4226929,0.000158,2]
[340962693,1730164246043,-146.64628094,0.00016,2]
[340962694,1730164246059,-35323.38470917,0.00016,2]
[340962702,1730164761221,1011.0,0.00044166,30]
[340962715,1730165329921,5000.0,0.00044166,30]
[340962738,1730165423223,1131.13915243,0.00044166,120]
[340962739,1730165424806,355.93683497,0.00044166,30]
[340962744,1730165432040,-2386.09,0.00015006,2]
[340962745,1730165432050,-1000.0,0.00015168,2]
[340962746,1730165432059,-341.41,0.00015232,2]
[340962747,1730165432069,-149.25666404,0.00015288,2]
[340962749,1730165432081,-150.74333596,0.00015288,2]
[340962751,1730165432092,-14950.86,0.00015289,2]
[340962753,1730165432102,-565.58502372,0.000153,2]
[340962754,1730165432111,-250.0,0.00015307,2]
[340962755,1730165432121,-155.93,0.00015342,2]
[340962756,1730165432131,-158.01,0.00015342,2]
[340962757,1730165432141,-500.0,0.00015371,2]
[340962758,1730165432152,-150.73,0.00015438,2]
[340962759,1730165432161,-180.28,0.00015575,2]
[340962760,1730165432171,-1105.0,0.00015575,2]
[340962761,1730165432181,-250.0,0.00015579,2]
[340962762,1730165432191,-150.0,0.00015581,2]
[340962763,1730165432201,-2751.0,0.00015657,2]
[340962764,1730165432211,-1190.585,0.0001568,2]
[340962765,1730165432221,-150.99,0.0001568,2]
[340962766,1730165432230,-5193.48,0.0001568,2]
[340962767,1730165432240,-698.34,0.00015802,2]
[340962768,1730165432250,-200.0,0.00015865,2]
[340962769,1730165432259,-540.27,0.00015865,2]
[340962770,1730165432270,-160.0,0.00015865,2]
[340962771,1730165432279,-500.0,0.00015865,2]
[340962772,1730165432289,-395.56321627,0.00015873,2]
[340962773,1730165432299,-201.66626767,0.00015873,2]
[340962774,1730165432309,-224.0,0.00015898,2]
[340962775,1730165432318,-19465.44532386,0.00015899,2]
[340962776,1730165432327,-232.93211152,0.00015899,2]
[340962777,1730165432337,-9838.2254,0.000159,2]
[340962778,1730165432346,-121418.28053957,0.000159,2]
[340962779,1730165432385,-3713.66672654,0.000159,2]
[340962781,1730165432415,-6724.78621514,0.000159,2]
[340962783,1730165432427,-103098.20448536,0.000159,2]
[340962785,1730165432438,-300.0,0.000159,2]
[340962798,1730165433814,150.0,0.00014929,2]
[340962799,1730165437500,195.31342031,0.00044166,30]
[340962801,1730165438476,-253.51581599,0.000159,2]
[340962814,1730165440382,-517.95999999,0.000159,2]
[340962838,1730165443120,-6059.90585349,0.000159,2]
[340962839,1730165443292,-525.19400972,0.000159,2]
[340962847,1730165445009,633.519,0.00044166,30]
[340962862,1730165446127,-1108.7030153,0.000159,2]
[340962864,1730165446305,-3115.84928,0.000159,2]
[340962868,1730165448681,172.0,0.00044166,120]
[340962871,1730165689335,160.31895559,0.00044166,60]
[340962872,1730165752345,163.28,0.00014744,2]
[340962873,1730165763766,200.0,0.00014738,2]
[340962874,1730165781641,250.0,0.00014737,2]
[340962875,1730165824292,500.0,0.00014741,2]
[340962876,1730165840801,250.0,0.00014735,2]
[340962877,1730165881931,200.0,0.00014742,2]
[340962879,1730165925825,1193.04,0.00014715,2]
[340962880,1730165957140,150.0,0.0001472,2]
[340962881,1730165961447,-350.25,0.00025444,120]
[340962882,1730165965600,160.68,0.0001472,2]
[340962883,1730166148107,2000.0,0.0001471,2]
[340962884,1730166168401,280.2,0.00014713,2]
[340962885,1730166184840,23900.0,0.00014718,2]
[340962886,1730166225061,500.0,0.0001473,2]
[340962887,1730166228205,1171.43,0.00012805,2]
[340962888,1730166243317,380.53,0.00014717,2]
[340962889,1730166247675,191.04,0.00014714,2]
[340962890,1730166316374,250.0,0.00014714,2]
[340962898,1730166334849,250.0,0.0001472,2]
[340962899,1730166376385,840.0,0.00014729,2]
[340962900,1730166379576,-1171.43,0.00015069,2]
[340962901,1730166379598,-173.2,0.00015268,2]
[340962902,1730166379624,-159.93,0.00015342,2]
[340962903,1730166379809,-204.0,0.00015525,2]
[340962904,1730166379831,-300.0,0.00015536,2]
[340962905,1730166379853,-18125.81975727,0.00015537,2]
[340962906,1730166379877,-160.68,0.00015538,2]
[340962907,1730166379900,-150.95,0.00015558,2]
[340962908,1730166379923,-150.95,0.00015562,2]
[340962909,1730166379945,-150.95,0.00015567,2]
[340962910,1730166379970,-150.95,0.00015571,2]
[340962911,1730166379991,-150.95,0.00015575,2]
[340962912,1730166380015,-150.95,0.0001558,2]